bitfinex-derivatives/quotes_BTCF0:USTF0_20250713
["timestamp","ask_amount","ask_price","bid_price","bid_amount"]
[1752447721703,1.51874443,118540.0,118530.0,0.003]
[1752447722002,1.26499679,118540.0,118530.0,0.003]
[1752447722904,1.26499679,118540.0,118530.0,0.2258378]
[1752447723202,1.01124915,118540.0,118530.0,0.52592544]
[1752447723399,0.65044915,118540.0,118530.0,0.52592544]
[1752447723799,0.65244915,118540.0,118530.0,0.2711778]
[1752447724605,0.90619679,118540.0,118530.0,0.2711778]
[1752447728101,0.90617832,118540.0,118530.0,0.2711778]
[1752447728398,0.2706578,118530.0,118520.0,0.24518378]
[1752447728600,0.90450252,118530.0,118520.0,0.02113168]
[1752447729501,0.92083415,118530.0,118520.0,0.00362792]
[1752447729703,0.92083415,118530.0,118520.0,0.00462792]
[1752447730107,1.49851415,118530.0,118520.0,0.00462792]
[1752447731311,1.49851415,118530.0,118520.0,0.00362792]
[1752447731607,1.49951415,118530.0,118520.0,0.00362792]
[1752447733910,1.50151415,118530.0,118520.0,0.00362792]
[1752447735006,0.92383415,118530.0,118520.0,0.00362792]
[1752447735210,1.50127415,118530.0,118520.0,0.00362792]
[1752447735803,1.50115415,118530.0,118520.0,0.19531002]
[1752447736104,1.50115415,118530.0,118520.0,0.22748002]
[1752447737212,0.29295498,118530.0,118520.0,0.54624988]
[1752447737414,0.12429708,118530.0,118520.0,0.71499388]
[1752447737713,0.26894498,118530.0,118520.0,0.54624988]
[1752447738510,0.2706314,118550.0,118540.0,0.1686436]
[1752447738713,0.2706314,118550.0,118540.0,1.12000951]
[1752447738914,0.2466214,118550.0,118540.0,1.12000951]
[1752447739713,0.2496214,118550.0,118540.0,1.12100951]
[1752447740016,0.2496214,118550.0,118540.0,1.12137407]
[1752447740512,0.2536214,118550.0,118540.0,1.12137407]
[1752447741515,0.08499,118550.0,118540.0,1.12137407]
[1752447741814,0.2536194,118550.0,118540.0,1.12137407]
[1752447743416,0.2776294,118550.0,118540.0,1.12137407]
[1752447744415,0.2536194,118550.0,118540.0,1.12137407]
[1752447745719,0.2206994,118550.0,118540.0,1.12137407]
[1752447746520,0.05207,118550.0,118540.0,0.86762643]
[1752447746722,0.2206994,118550.0,118540.0,1.12137407]
[1752447748517,0.05207,118550.0,118540.0,1.48217407]
[1752447748715,0.05207,118550.0,118540.0,1.65088607]
[1752447748716,0.007,118550.0,118540.0,1.65088607]
[1752447750624,0.007,118550.0,118540.0,1.71757185]
[1752447754120,0.11319,118550.0,118540.0,1.54885985]
[1752447754326,0.2818194,118550.0,118540.0,1.54885985]
[1752447755028,0.2573294,118550.0,118540.0,1.54885985]
[1752447755323,0.007,118550.0,118540.0,1.54885985]
[1752447757128,0.007,118550.0,118540.0,1.90965985]
[1752447761024,0.007,118550.0,118540.0,1.65591221]
[1752447761230,0.007,118550.0,118540.0,1.90965985]
[1752447764435,0.007,118550.0,118540.0,1.33205985]
[1752447764635,0.007,118550.0,118540.0,1.91057985]
[1752447768236,0.007,118550.0,118540.0,2.41057985]
[1752447769536,0.007,118550.0,118540.0,2.70487985]
[1752447773041,0.007,118550.0,118540.0,2.76541199]
[1752447774143,0.007,118550.0,118540.0,2.93412399]
[1752447775446,0.007,118550.0,118540.0,3.51156399]
[1752447775645,0.0887,118550.0,118540.0,2.72830435]
[1752447775941,0.0887,118550.0,118540.0,2.98205199]
[1752447775942,0.007,118550.0,118540.0,2.98205199]
[1752447777834,0.007,118550.0,118540.0,2.92151985]
[1752447778234,0.007,118550.0,118540.0,2.98205199]
[1752447779046,0.007,118550.0,118540.0,3.34285199]
[1752447779645,0.007,118550.0,118540.0,3.04855199]
[1752447782548,0.002,118570.0,118560.0,0.2225252]
[1752447782738,0.002,118570.0,118560.0,2.0571882]
[1752447783348,0.02120567,118570.0,118560.0,2.0571882]
[1752447783753,0.02620567,118570.0,118560.0,2.0581882]
[1752447784247,0.03320567,118570.0,118560.0,2.0581882]
[1752447784852,0.02420567,118570.0,118560.0,2.0571882]
[1752447787345,0.02420567,118570.0,118560.0,0.9002282]
[1752447787542,0.29186667,118570.0,118560.0,0.9002282]
[1752447787747,0.29186667,118570.0,118560.0,0.28568056]
[1752447787954,0.65266667,118570.0,118560.0,0.28568056]
[1752447788251,0.29186667,118570.0,118560.0,0.28568056]
[1752447789148,0.12326567,118570.0,118560.0,0.28568056]
[1752447789350,0.12326567,118570.0,118560.0,0.5394282]
[1752447789752,0.29186667,118570.0,118560.0,0.5394282]
[1752447790856,0.29186667,118570.0,118560.0,0.9002282]
[1752447791056,0.29186667,118570.0,118560.0,0.5394282]
[1752447791361,0.12326567,118570.0,118560.0,0.5394282]
[1752447791655,0.29185548,118570.0,118560.0,0.5394282]
[1752447791856,0.272661,118570.0,118560.0,0.5394282]
[1752447792859,0.10406,118570.0,118560.0,0.5394282]
[1752447793652,0.10406,118570.0,118560.0,0.9002282]
[1752447793859,0.10406,118570.0,118560.0,0.5394282]
[1752447794055,0.08082,118570.0,118560.0,0.5394282]
[1752447794256,0.005,118570.0,118560.0,0.9002282]
[1752447794759,0.005,118570.0,118560.0,1.15397584]
[1752447795164,0.005,118570.0,118560.0,1.65397584]
[1752447796066,0.005,118570.0,118560.0,1.4002282]
[1752447796365,0.005,118570.0,118560.0,1.4012282]
[1752447796366,0.003,118570.0,118560.0,1.4012282]
[1752447796964,0.002,118570.0,118560.0,1.4022282]
[1752447799070,0.002,118570.0,118560.0,1.6965282]
[1752447801178,0.002,118570.0,118560.0,1.75706034]
[1752447801472,0.002,118570.0,118560.0,1.6965282]
[1752447801973,0.002,118570.0,118560.0,1.4022282]
[1752447802473,0.002,118570.0,118560.0,1.46276034]
[1752447803075,0.002,118570.0,118560.0,1.71650798]
[1752447804268,0.06144133,118590.0,118580.0,0.2681167]
[1752447804573,0.13437684,118590.0,118580.0,2.0572522]
[1752447804766,0.11113684,118590.0,118580.0,2.0572522]
[1752447804971,0.11113684,118590.0,118580.0,2.06584337]
[1752447805369,0.03531684,118590.0,118580.0,2.06584337]
[1752447805571,0.03631684,118590.0,118580.0,2.06584337]
[1752447806371,0.01913133,118590.0,118580.0,2.06584337]
[1752447807974,0.001,118590.0,118580.0,2.06584337]
[1752447808472,0.6745409,118610.0,118600.0,0.1685583]
[1752447808668,0.6745409,118610.0,118600.0,1.69816826]
[1752447809678,0.6745409,118610.0,118600.0,1.44442062]
[1752447809876,0.6745409,118610.0,118600.0,1.69816826]
[1752447810077,0.6374049,118610.0,118600.0,1.69816826]
[1752447811876,0.65658849,118610.0,118600.0,1.69816826]
[1752447812182,0.65658849,118610.0,118600.0,1.51339194]
[1752447812478,0.29578849,118610.0,118600.0,1.51339194]
[1752447812678,0.65658849,118610.0,118600.0,1.44442062]
[1752447814081,0.65658849,118610.0,118600.0,1.69816826]
[1752447815174,0.65658849,118610.0,118600.0,1.44442062]
[1752447817779,0.65658849,118610.0,118600.0,1.51254203]
[1752447823085,0.65658849,118610.0,118600.0,1.76628967]
[1752447825678,0.65658849,118610.0,118600.0,1.75628967]
[1752447826185,0.29578849,118610.0,118600.0,1.75628967]
[1752447826386,0.65658849,118610.0,118600.0,1.75628967]
[1752447831389,0.48804359,118610.0,118600.0,1.75628967]
[1752447831687,0.65658769,118610.0,118600.0,1.75628967]
[1752447831989,0.48804359,118610.0,118600.0,1.75628967]
[1752447834884,0.38898359,118610.0,118600.0,1.50254203]
[1752447835080,0.38898359,118610.0,118600.0,2.01003731]
[1752447835584,0.38886024,118610.0,118600.0,1.75628967]
[1752447835983,0.38886024,118610.0,118600.0,2.25628967]
[1752447836191,0.48985024,118610.0,118600.0,1.42230203]
[1752447836890,0.48685024,118610.0,118600.0,1.42230203]
[1752447837285,0.48685024,118610.0,118600.0,1.67604967]
[1752447837689,0.48685024,118610.0,118600.0,1.17604967]
[1752447839289,0.12605024,118610.0,118600.0,1.17604967]
[1752447839489,0.48685024,118610.0,118600.0,1.17604967]
[1752447841792,0.46383024,118610.0,118600.0,1.17604967]
[1752447842993,0.48641024,118610.0,118600.0,1.17604967]
[1752447844192,0.46735,118610.0,118600.0,1.17604967]
[1752447844490,0.48643251,118610.0,118600.0,1.17604967]
[1752447846396,0.12563251,118610.0,118600.0,1.17604967]
[1752447846598,0.48643251,118610.0,118600.0,1.17604967]
[1752447847197,0.48643251,118610.0,118600.0,0.92230203]
[1752447847398,0.48643251,118610.0,118600.0,1.17604967]
[1752447848893,0.12563251,118610.0,118600.0,1.17604967]
[1752447849097,0.48643251,118610.0,118600.0,1.17604967]
[1752447849296,0.48643251,118610.0,118600.0,0.59764967]
[1752447849498,0.48643251,118610.0,118600.0,1.17600967]
[1752447851503,0.65497661,118610.0,118600.0,0.92210203]
[1752447851696,0.90872425,118610.0,118600.0,0.92210203]
[1752447852205,0.65497661,118610.0,118600.0,0.92210203]
[1752447853093,0.48643251,118610.0,118600.0,0.92210203]
[1752447853300,0.65497661,118610.0,118600.0,0.92210203]
[1752447853701,0.90872425,118610.0,118600.0,0.92194203]
[1752447853897,0.90872425,118610.0,118600.0,0.92190203]
[1752447855398,0.90872425,118610.0,118600.0,0.87628203]
[1752447858404,0.54792425,118610.0,118600.0,0.87628203]
[1752447858700,0.90872425,118610.0,118600.0,0.87628203]
[1752447858898,0.90872425,118610.0,118600.0,0.92606203]
[1752447860407,0.54792425,118610.0,118600.0,0.92606203]
[1752447860605,0.90872425,118610.0,118600.0,0.92606203]
[1752447861007,0.84502481,118610.0,118600.0,1.11611023]
[1752447861201,0.84502481,118610.0,118600.0,0.34806203]
[1752447861406,1.03507301,118610.0,118600.0,0.01769232]
[1752447861601,1.03507301,118610.0,118590.0,0.0002]
[1752447861602,0.2700383,118600.0,118590.0,0.0002]
[1752447861906,0.2700526,118590.0,118580.0,0.27932813]
[1752447862106,0.8209008,118590.0,118580.0,0.88108813]
[1752447862302,0.8209008,118590.0,118580.0,0.91270813]
[1752447862902,0.88434166,118590.0,118580.0,0.91270813]
[1752447863109,0.88434166,118590.0,118580.0,0.91370813]
[1752447863404,0.6308526,118590.0,118580.0,0.96348813]
[1752447863595,0.46228,118590.0,118580.0,1.21797719]
[1752447863795,0.05566,118600.0,118590.0,0.2001926]
[1752447863999,0.28906023,118600.0,118590.0,0.52698166]
[1752447864201,0.12050193,118600.0,118590.0,0.52698166]
[1752447864400,0.28906023,118600.0,118590.0,0.52698166]
[1752447864797,0.12050193,118600.0,118590.0,0.52698166]
[1752447865404,0.12050193,118600.0,118590.0,0.52798166]
[1752447865805,0.64986023,118600.0,118590.0,0.52898166]
[1752447870108,0.12050193,118600.0,118590.0,0.52898166]
[1752447871506,0.01902193,118600.0,118590.0,0.52898166]
[1752447871905,0.62784908,118610.0,118600.0,0.2004783]
[1752447872110,0.66961406,118610.0,118600.0,1.10432736]
[1752447872409,0.30881406,118610.0,118600.0,1.10432736]
[1752447872610,0.66961406,118610.0,118600.0,1.10432736]
[1752447873703,0.66961406,118610.0,118600.0,1.17041842]
[1752447874212,0.30881406,118610.0,118600.0,1.17041842]
[1752447874413,0.66961406,118610.0,118600.0,1.17041842]
[1752447879028,0.50106946,118610.0,118600.0,1.17041842]
[1752447879228,0.66961356,118610.0,118600.0,1.17041842]
[1752447883328,0.30881356,118610.0,118600.0,1.17041842]
[1752447883517,0.50106946,118610.0,118600.0,1.17041842]
[1752447886129,0.92310262,118610.0,118600.0,0.12170106]
[1752447886432,0.92310262,118610.0,118600.0,0.29025936]
[1752447887933,0.66961356,118610.0,118600.0,0.29025936]
[1752447888934,0.2731583,118600.0,118590.0,0.0002]
[1752447889133,0.90645234,118600.0,118590.0,0.1685726]
[1752447889934,0.90645234,118600.0,118590.0,0.1695726]
[1752447890532,0.90645234,118600.0,118590.0,0.1932626]
[1752447891228,0.65296328,118600.0,118590.0,0.1932626]
[1752447891429,0.65296328,118600.0,118590.0,0.2251826]
[1752447891629,0.65296328,118600.0,118590.0,0.47867166]
[1752447891831,0.65296328,118600.0,118590.0,0.52690166]
[1752447892233,0.12360498,118600.0,118590.0,0.52690166]
[1752447892447,0.29216328,118600.0,118590.0,0.52690166]
[1752447892937,0.29216328,118600.0,118590.0,0.52790166]
[1752447894828,0.12360498,118600.0,118590.0,0.52790166]
[1752447895235,0.29216328,118600.0,118590.0,0.52790166]
[1752447898339,0.12360498,118600.0,118590.0,0.52790166]
[1752447899041,0.29216328,118600.0,118590.0,0.52790166]
[1752447899341,0.12360498,118600.0,118590.0,0.52790166]
[1752447899840,0.29216328,118600.0,118590.0,0.52790166]
[1752447900042,0.12360498,118600.0,118590.0,0.52790166]
[1752447900240,0.10084498,118600.0,118590.0,0.52790166]
[1752447900840,0.06811498,118600.0,118590.0,0.52790166]
[1752447901036,0.10011498,118600.0,118590.0,0.52790166]
[1752447901237,0.12287498,118600.0,118590.0,0.52790166]
[1752447904245,0.29143328,118600.0,118590.0,0.52790166]
[1752447907737,0.12287498,118600.0,118590.0,0.52790166]
[1752447909947,0.29143328,118600.0,118590.0,0.52790166]
[1752447910148,0.12287498,118600.0,118590.0,0.52790166]
[1752447910648,0.29143328,118600.0,118590.0,0.52790166]
[1752447911745,0.12287498,118600.0,118590.0,0.52790166]
[1752447913948,0.29143328,118600.0,118590.0,0.52790166]
[1752447914648,0.12287498,118600.0,118590.0,0.52790166]
[1752447915648,0.29143328,118600.0,118590.0,0.52790166]
[1752447916452,0.12287498,118600.0,118590.0,0.52790166]
[1752447916951,0.29143328,118600.0,118590.0,0.52790166]
[1752447917549,0.12287498,118600.0,118590.0,0.52790166]
[1752447919354,0.10011498,118600.0,118590.0,0.52790166]
[1752447920453,0.01900498,118600.0,118590.0,0.52790166]
[1752447920847,0.45260448,118610.0,118600.0,0.06887]
[1752447920848,0.3648,118610.0,118600.0,0.06887]
[1752447921049,0.3839647,118610.0,118600.0,1.03423796]
[1752447921250,0.3839647,118610.0,118600.0,1.20286196]
[1752447921444,0.3608,118620.0,118610.0,0.1685441]
[1752447921649,0.3608,118620.0,118610.0,1.64089316]
[1752447922051,0.3608,118620.0,118610.0,2.14089316]
[1752447922858,0.3608,118620.0,118610.0,2.14189316]
[1752447923354,0.40867,118620.0,118610.0,2.14189316]
[1752447925146,0.004,118650.0,118630.0,0.1685157]
[1752447925352,0.21631384,118680.0,118670.0,0.1985889]
[1752447925555,0.25842614,118680.0,118670.0,1.5139489]
[1752447925752,0.5119152,118680.0,118670.0,1.5129489]
[1752447926457,0.5119152,118680.0,118670.0,1.5089489]
[1752447926659,0.5179152,118680.0,118670.0,1.5099489]
[1752447927257,0.5897652,118680.0,118670.0,1.5099489]
[1752447927760,0.5897652,118680.0,118670.0,1.5559089]
[1752447928360,0.5897652,118680.0,118670.0,1.5099489]
[1752447928860,0.34227614,118680.0,118670.0,1.5099489]
[1752447929062,0.5957652,118680.0,118670.0,1.5099489]
[1752447929266,0.5917652,118680.0,118670.0,1.5099489]
[1752447929763,0.5877652,118680.0,118670.0,1.51756922]
[1752447930053,0.5877652,118680.0,118670.0,1.56352922]
[1752447930254,0.3772041,118680.0,118670.0,1.56352922]
[1752447930459,0.3772041,118680.0,118670.0,1.58643922]
[1752447930660,0.12371504,118680.0,118670.0,1.83992828]
[1752447931449,0.04021893,118680.0,118670.0,1.83992828]
[1752447933564,0.28803373,118680.0,118670.0,1.83992828]
[1752447935164,0.11958893,118680.0,118670.0,1.83992828]
[1752447935365,0.04021893,118680.0,118670.0,1.83992828]
[1752447936066,0.25486373,118680.0,118670.0,1.83992828]
[1752447936267,0.08641893,118680.0,118670.0,1.83992828]
[1752447936464,0.25486373,118680.0,118670.0,1.83992828]
[1752447938365,0.28803373,118680.0,118670.0,1.83992828]
[1752447940069,0.11958893,118680.0,118670.0,1.83992828]
[1752447942562,0.04021893,118680.0,118670.0,1.83992828]
[1752447943271,0.08641893,118680.0,118670.0,1.83992828]
[1752447945571,0.04021893,118680.0,118670.0,1.83992828]
[1752447945768,0.01623893,118680.0,118670.0,1.83992828]
[1752447945970,0.03927893,118680.0,118670.0,1.83992828]
[1752447947269,0.08547893,118680.0,118670.0,1.83992828]
[1752447947470,0.11864893,118680.0,118670.0,1.83992828]
[1752447950573,0.28709373,118680.0,118670.0,1.83992828]
[1752447953276,0.28709373,118680.0,118670.0,1.86984021]
[1752447955277,0.28709373,118680.0,118670.0,1.91470811]
[1752447955778,0.28709373,118680.0,118670.0,1.86984021]
[1752447955978,0.30367011,118680.0,118670.0,1.83992828]
[1752447957074,0.11864893,118680.0,118670.0,1.87007632]
[1752447957268,0.01623893,118680.0,118670.0,1.87007632]
[1752447957580,0.01623893,118680.0,118670.0,1.88479618]
[1752447957875,0.03927893,118680.0,118670.0,1.87008048]
[1752447958078,0.01623893,118680.0,118670.0,1.88479618]
[1752447958471,0.004,118690.0,118680.0,0.2729948]
[1752447958673,0.004,118690.0,118680.0,1.17092686]
[1752447958982,0.004,118690.0,118680.0,1.21579476]
[1752447959675,0.008,118690.0,118680.0,1.71579476]
[1752447960081,0.011,118690.0,118680.0,1.68564082]
[1752447960281,0.011,118690.0,118680.0,1.64077292]
[1752447960479,0.011,118690.0,118680.0,1.68600938]
[1752447962379,0.2027006,118690.0,118680.0,1.43252032]
[1752447962586,0.2778506,118690.0,118680.0,1.43252032]
[1752447962785,0.2778506,118690.0,118680.0,1.17903126]
[1752447962978,0.54792209,118690.0,118680.0,1.7279548]
[1752447963284,0.54792209,118690.0,118680.0,0.6337948]
[1752447963583,0.29443303,118690.0,118680.0,1.2279548]
[1752447965184,0.54792209,118690.0,118680.0,1.2279548]
[1752447966185,0.54792209,118690.0,118680.0,1.5887548]
[1752447966982,0.54792209,118690.0,118680.0,1.63399126]
[1752447967784,0.29443303,118690.0,118680.0,1.63399126]
[1752447968476,0.29443303,118690.0,118680.0,1.88748032]
[1752447970790,0.29443303,118690.0,118680.0,1.63399126]
[1752447971184,0.29443303,118690.0,118680.0,1.88748032]
[1752447975493,0.29443303,118690.0,118680.0,1.16588032]
[1752447975692,0.29443303,118690.0,118680.0,1.88748032]
[1752447977892,0.29443303,118690.0,118680.0,1.16588032]
[1752447978090,0.29443303,118690.0,118680.0,1.88748032]
[1752447978290,0.2778506,118690.0,118680.0,1.88748032]
[1752447978793,0.29450176,118690.0,118680.0,1.88748032]
[1752447979291,0.2778506,118690.0,118680.0,1.88748032]
[1752447981294,0.10942,118690.0,118680.0,1.88748032]
[1752447981496,0.2778506,118690.0,118680.0,1.88748032]
[1752447984891,0.2778506,118690.0,118680.0,1.52668032]
[1752447985098,0.2778506,118690.0,118680.0,1.88748032]
[1752447986399,0.2778506,118690.0,118680.0,1.84224386]
[1752447992409,0.2778506,118690.0,118680.0,1.5837148]
[1752447992609,0.2945167,118690.0,118680.0,1.62897877]
[1752447992804,0.2945167,118690.0,118680.0,0.79829397]
[1752447992805,0.54800576,118690.0,118680.0,0.79829397]
[1752447993006,0.54800576,118690.0,118680.0,1.38741397]
[1752447993209,0.54800576,118690.0,118680.0,1.55585877]
[1752447993409,0.54800576,118690.0,118680.0,1.5105948]
[1752447995206,0.54800576,118690.0,118680.0,1.5603148]
[1752447995410,0.54800576,118690.0,118680.0,1.5835748]
[1752447998011,0.2945167,118690.0,118680.0,1.5835748]
[1752447998212,0.54800576,118690.0,118680.0,1.5835748]
[1752447998711,0.53133966,118690.0,118680.0,1.5835748]
[1752448001911,0.53133966,118690.0,118680.0,0.39223]
[1752448002114,0.2722248,118680.0,118670.0,0.07560456]
[1752448002410,1.95652292,118680.0,118670.0,0.03014059]
[1752448002713,2.12505092,118680.0,118670.0,0.03014059]
[1752448003317,2.12705092,118680.0,118670.0,0.03014059]
[1752448003516,0.168459,118670.0,118660.0,0.46741456]
[1752448003814,0.52572806,118670.0,118660.0,0.46721456]
[1752448004115,0.52572806,118670.0,118660.0,0.42195059]
[1752448004716,0.52572806,118670.0,118660.0,0.39181]
[1752448006119,0.52672806,118670.0,118660.0,0.39181]
[1752448008120,0.88752806,118670.0,118660.0,0.03101]
[1752448008415,0.2017231,118660.0,118650.0,0.47349406]
[1752448008617,0.52574216,118660.0,118650.0,0.47329406]
[1752448008917,0.52574216,118660.0,118650.0,0.64178136]
[1752448009520,0.52574216,118660.0,118650.0,0.47329406]
[1752448010021,0.52574216,118660.0,118650.0,0.47529406]
[1752448010323,0.52574216,118660.0,118650.0,0.64378136]
[1752448013424,0.52574216,118660.0,118650.0,0.28298136]
[1752448013624,0.52574216,118660.0,118650.0,0.47529406]
[1752448014626,0.52574216,118660.0,118650.0,0.64378136]
[1752448015020,1.11350216,118660.0,118650.0,0.3628]
[1752448018630,1.11350216,118660.0,118650.0,0.39381]
[1752448019633,1.11350216,118660.0,118650.0,0.5622973]
[1752448019826,0.52574216,118660.0,118650.0,0.6120173]
[1752448020023,0.52574216,118660.0,118650.0,0.6352773]
[1752448020225,1.11294216,118660.0,118650.0,0.6352773]
[1752448021341,0.8594531,118660.0,118650.0,0.6352773]
[1752448021637,1.11294216,118660.0,118650.0,0.6352773]
[1752448022738,0.52574216,118660.0,118650.0,0.6352773]
[1752448022932,1.11302216,118660.0,118650.0,0.6352773]
[1752448025640,0.52574216,118660.0,118650.0,0.6352773]
[1752448025837,1.11274216,118660.0,118650.0,0.6352773]
[1752448026038,1.11254216,118660.0,118650.0,0.6352773]
[1752448028742,1.12928483,118660.0,118650.0,0.6352773]
[1752448031642,1.12928483,118660.0,118650.0,0.6120173]
[1752448035447,0.54248483,118660.0,118650.0,0.6120173]
[1752448035849,1.12792483,118660.0,118650.0,0.6120173]
[1752448036245,0.54248483,118660.0,118650.0,0.6120173]
[1752448036649,1.12784483,118660.0,118650.0,0.6120173]
[1752448037348,0.54248483,118660.0,118650.0,0.6120173]
[1752448037548,1.12780483,118660.0,118650.0,0.6120173]
[1752448037848,1.12768483,118660.0,118650.0,0.6120173]
[1752448041755,1.11094216,118660.0,118650.0,0.6120173]
[1752448042052,1.12772405,118660.0,118650.0,0.6120173]
[1752448043445,1.12772405,118660.0,118650.0,0.39381]
[1752448043657,1.12772405,118660.0,118650.0,0.002]
[1752448044059,1.48852405,118660.0,118650.0,0.002]
[1752448045459,1.23503499,118660.0,118650.0,0.002]
[1752448045757,1.48852405,118660.0,118650.0,0.002]
[1752448048368,1.65707605,118660.0,118650.0,0.002]
[1752448048668,0.28826177,118650.0,118640.0,0.0018857]
[1752448048858,1.17282178,118650.0,118640.0,0.0016857]
[1752448049062,1.34138978,118650.0,118640.0,0.0016857]
[1752448049266,1.08790072,118650.0,118640.0,0.0016857]
[1752448049871,1.08790072,118650.0,118640.0,0.0026857]
[1752448050073,1.08790072,118650.0,118640.0,0.0036857]
[1752448050960,1.09654661,118650.0,118640.0,0.0036857]
[1752448052073,1.09654661,118650.0,118640.0,0.0026857]
[1752448053771,0.92797861,118650.0,118640.0,0.0026857]
[1752448059379,1.14217272,118650.0,118640.0,0.0026857]
[1752448059677,1.14213272,118650.0,118640.0,0.3957257]
[1752448060174,0.55853272,118650.0,118640.0,0.3957257]
[1752448060374,1.14209272,118650.0,118640.0,0.3957257]
[1752448062078,1.14209272,118650.0,118640.0,0.6120972]
[1752448062079,0.30504366,118650.0,118640.0,0.6120972]
[1752448062376,0.30504366,118650.0,118640.0,0.88854626]
[1752448062678,0.27478366,118650.0,118640.0,0.88854626]
[1752448064174,0.27478366,118650.0,118640.0,1.24934626]
[1752448064579,0.30680366,118650.0,118640.0,1.24934626]
[1752448066979,0.27478366,118650.0,118640.0,1.24934626]
[1752448069581,0.20114366,118650.0,118640.0,1.24934626]
[1752448069778,0.18436177,118650.0,118640.0,1.24934626]
[1752448070280,0.20714177,118650.0,118640.0,1.24934626]
[1752448070778,0.20714177,118650.0,118640.0,1.83206626]
[1752448070978,0.18436177,118650.0,118640.0,1.83206626]
[1752448071580,0.18436177,118650.0,118640.0,1.24934626]
[1752448071781,0.18436177,118650.0,118640.0,1.83182626]
[1752448072583,0.20714177,118650.0,118640.0,1.83182626]
[1752448072878,0.20714177,118650.0,118640.0,1.83178626]
[1752448073269,0.25419177,118650.0,118640.0,1.83178626]
[1752448080978,0.20714177,118650.0,118640.0,1.83178626]
[1752448082488,0.25332177,118650.0,118640.0,1.83178626]
[1752448083091,0.25332177,118650.0,118640.0,1.5782972]
[1752448083386,0.25332177,118650.0,118640.0,1.83178626]
[1752448083587,0.28335177,118650.0,118640.0,1.83178626]
[1752448085891,0.20714177,118650.0,118640.0,1.83178626]
[1752448089797,0.20714177,118650.0,118640.0,1.11018626]
[1752448089989,0.20714177,118650.0,118640.0,1.83178626]
[1752448090588,0.2239057,118650.0,118640.0,1.87705023]
[1752448090894,0.2700857,118650.0,118640.0,1.87705023]
[1752448092993,0.2700857,118650.0,118640.0,2.00330461]
[1752448093394,0.45995742,118650.0,118640.0,2.00330461]
[1752448093693,0.2700857,118650.0,118640.0,2.00330461]
[1752448095298,0.2239057,118650.0,118640.0,2.00330461]
[1752448096391,0.2700857,118650.0,118640.0,2.00330461]
[1752448100196,0.2700857,118650.0,118640.0,1.28170461]
[1752448100397,0.2700857,118650.0,118640.0,2.00330461]
[1752448100801,0.2239057,118650.0,118640.0,2.00330461]
[1752448102293,0.3001157,118650.0,118640.0,1.04112117]
[1752448102599,0.48998742,118650.0,118640.0,1.01816117]
[1752448102794,0.48998742,118650.0,118640.0,1.59952117]
[1752448103695,0.48998742,118650.0,118640.0,1.81266289]
[1752448104194,0.48998742,118650.0,118640.0,1.09106289]
[1752448104397,0.48998742,118650.0,118640.0,1.81266289]
[1752448104999,0.3001157,118650.0,118640.0,1.62279117]
[1752448107801,0.3001157,118650.0,118640.0,0.90119117]
[1752448108001,0.3001157,118650.0,118640.0,1.62279117]
[1752448108898,0.2239057,118650.0,118640.0,1.87600553]
[1752448109304,0.3001157,118650.0,118640.0,1.87600553]
[1752448109604,0.3001157,118650.0,118640.0,1.62279117]
[1752448109803,0.3001157,118650.0,118640.0,1.87600553]
[1752448113807,0.3001157,118650.0,118640.0,1.62279117]
[1752448114006,0.3001157,118650.0,118640.0,1.87600553]
[1752448114607,0.55333006,118650.0,118640.0,1.02230967]
[1752448114810,0.55333006,118650.0,118640.0,0.9770457]
[1752448115718,0.55333006,118650.0,118640.0,0.3957257]
[1752448116119,0.55333006,118650.0,118640.0,0.0349257]
[1752448118718,0.55333006,118650.0,118640.0,0.3957257]
[1752448118919,0.55333006,118650.0,118640.0,0.5642272]
[1752448120523,0.55333006,118650.0,118640.0,0.2034272]
[1752448120724,0.55333006,118650.0,118640.0,0.3957257]
[1752448123028,0.3001157,118650.0,118640.0,0.3957257]
[1752448123324,0.55333006,118650.0,118640.0,0.3957257]
[1752448124625,0.55333006,118650.0,118640.0,0.5642272]
[1752448126623,0.55333006,118650.0,118640.0,0.3957257]
[1752448129426,0.55333006,118650.0,118640.0,0.0349257]
[1752448129626,0.55333006,118650.0,118640.0,0.3957257]
[1752448130927,0.55333006,118650.0,118640.0,0.4427257]
[1752448131825,0.55333006,118650.0,118640.0,0.6112272]
[1752448133529,0.55333006,118650.0,118640.0,0.2504272]
[1752448133726,0.55333006,118650.0,118640.0,0.6112272]
[1752448138927,0.49004925,118650.0,118640.0,0.6112272]
[1752448139130,0.49004925,118650.0,118640.0,0.4427257]
[1752448139834,0.49004925,118650.0,118640.0,0.6112272]
[1752448140228,0.3001157,118650.0,118640.0,0.80116075]
[1752448140538,0.49004925,118650.0,118640.0,0.82509075]
[1752448143036,0.55333581,118650.0,118640.0,0.6351572]
[1752448143238,0.8812357,118650.0,118640.0,0.6351572]
[1752448143739,0.3001157,118650.0,118640.0,0.6351572]
[1752448144037,0.2011257,118650.0,118640.0,1.46949731]
[1752448144239,0.2011257,118650.0,118640.0,1.51476128]
[1752448144738,0.0326384,118650.0,118640.0,1.51476128]
[1752448145038,0.33902925,118670.0,118660.0,0.1684731]
[1752448145231,0.29691215,118670.0,118660.0,1.81095321]
[1752448145732,0.27246215,118670.0,118660.0,1.81095321]
[1752448146233,0.30765215,118670.0,118660.0,0.9766131]
[1752448146435,0.58532226,118670.0,118660.0,0.9436231]
[1752448146738,0.58732226,118670.0,118660.0,0.77515]
[1752448146938,0.58732226,118670.0,118660.0,1.35623]
[1752448147333,0.58432226,118670.0,118660.0,1.35623]
[1752448149441,0.58432226,118670.0,118660.0,1.5247031]
[1752448149741,0.58432226,118670.0,118660.0,1.35623]
[1752448150943,0.58432226,118670.0,118660.0,0.99543]
[1752448151743,0.58432226,118670.0,118660.0,1.1639031]
[1752448152347,0.58432226,118670.0,118660.0,0.99543]
[1752448152845,0.58432226,118670.0,118660.0,1.1639031]
[1752448153044,0.58432226,118670.0,118660.0,1.1968931]
[1752448153347,0.22742215,118670.0,118660.0,1.45011321]
[1752448154739,0.29791215,118670.0,118660.0,1.45011321]
[1752448154943,0.29791215,118670.0,118660.0,1.1968931]
[1752448155137,0.55113226,118670.0,118660.0,1.26267158]
[1752448155642,0.29791215,118670.0,118660.0,1.51589169]
[1752448156342,0.27346215,118670.0,118660.0,1.51589169]
[1752448156542,0.22742215,118670.0,118660.0,1.51589169]
[1752448156940,0.29072427,118670.0,118660.0,1.51589169]
[1752448157641,0.31517427,118670.0,118660.0,1.51589169]
[1752448157843,0.31517427,118670.0,118660.0,1.26267158]
[1752448158443,0.31517427,118670.0,118660.0,1.04239158]
[1752448158746,0.60158438,118670.0,118660.0,0.77515]
[1752448159046,0.60158438,118670.0,118660.0,1.35611]
[1752448159438,0.60158438,118670.0,118660.0,1.3891]
[1752448160846,0.60158438,118670.0,118660.0,1.5575731]
[1752448163948,0.34836427,118670.0,118660.0,1.5575731]
[1752448164148,0.60158438,118670.0,118660.0,1.5575731]